[Event "*** MasterClass Titled Tuesday Blitz"]
[Site "Chess.com"]
[Date "2017.12.05"]
[Round "8"]
[White "Rodalquilar"]
[Black "Al_Shima"]
[Result "1-0"]
[WhiteElo "2490"]
[BlackElo "2358"]
[TimeControl "180+2"]
[EndTime "15:59:09 PST"]
[Termination "Rodalquilar won by resignation"]

1. d4 {[%clk 0:03:01.9]} 1... Nf6 {[%clk 0:03:00.5]} 2. Bf4 {[%clk 0:03:02.9]}
2... d6 {[%clk 0:02:57.1]} 3. Nf3 {[%clk 0:02:57.8]} 3... g6 {[%clk 0:02:57.4]}
4. h3 {[%clk 0:02:54.8]} 4... Bg7 {[%clk 0:02:58.1]} 5. e3 {[%clk 0:02:56.2]}
5... b6 {[%clk 0:02:59.2]} 6. Be2 {[%clk 0:02:47]} 6... Bb7 {[%clk 0:03:00]} 7.
O-O {[%clk 0:02:48]} 7... O-O {[%clk 0:03:00.8]} 8. a4 {[%clk 0:02:48]} 8... a6
{[%clk 0:03:01.3]} 9. Nbd2 {[%clk 0:02:48.5]} 9... c5 {[%clk 0:03:00.7]} 10. c3
{[%clk 0:02:49.1]} 10... Nc6 {[%clk 0:03:01.2]} 11. Bh2 {[%clk 0:02:48.8]} 11...
Rc8 {[%clk 0:02:46.8]} 12. Bd3 {[%clk 0:02:41.6]} 12... Qc7 {[%clk 0:02:36.7]}
13. Qe2 {[%clk 0:02:41.7]} 13... Nb8 {[%clk 0:02:36.6]} 14. e4 {[%clk
0:02:34.2]} 14... Nfd7 {[%clk 0:02:27]} 15. e5 {[%clk 0:02:28.6]} 15... cxd4
{[%clk 0:02:06.9]} 16. exd6 {[%clk 0:02:13.4]} 16... exd6 {[%clk 0:02:07.6]} 17.
cxd4 {[%clk 0:02:02.1]} 17... Rfe8 {[%clk 0:01:56]} 18. Qd1 {[%clk 0:02:03]}
18... Nf6 {[%clk 0:01:48.5]} 19. Qb3 {[%clk 0:01:56.8]} 19... Bd5 {[%clk
0:01:44.2]} 20. Qa3 {[%clk 0:01:58]} 20... Rcd8 {[%clk 0:01:42.7]} 21. Rac1
{[%clk 0:01:54.5]} 21... Qd7 {[%clk 0:01:42]} 22. Qb4 {[%clk 0:01:52.8]} 22...
Nc6 {[%clk 0:01:15.4]} 23. Qa3 {[%clk 0:01:24.7]} 23... Ne4 {[%clk 0:01:03.8]}
24. Nxe4 {[%clk 0:01:02.3]} 24... Bxe4 {[%clk 0:01:04.7]} 25. Bxe4 {[%clk
0:01:03.8]} 25... Rxe4 {[%clk 0:01:05.4]} 26. Qd3 {[%clk 0:01:04.6]} 26... d5
{[%clk 0:01:04.7]} 27. Qxa6 {[%clk 0:01:02.7]} 27... Nxd4 {[%clk 0:00:54.6]} 28.
Rc7 {[%clk 0:00:35.7]} 28... Qe6 {[%clk 0:00:51.5]} 29. Ng5 {[%clk 0:00:33.8]}
29... Ne2+ {[%clk 0:00:42.7]} 30. Kh1 {[%clk 0:00:35.2]} 30... Qf6 {[%clk
0:00:32]} 31. Nxe4 {[%clk 0:00:33.6]} 31... Qxb2 {[%clk 0:00:31.2]} 32. Ng5
{[%clk 0:00:26.9]} 32... Rf8 {[%clk 0:00:30.7]} 33. Qb7 {[%clk 0:00:26.3]} 33...
Qf6 {[%clk 0:00:29.4]} 34. Qxd5 {[%clk 0:00:24.6]} 34... h6 {[%clk 0:00:26.4]}
35. Ne4 {[%clk 0:00:23.7]} 35... Qb2 {[%clk 0:00:20.9]} 36. Nd6 {[%clk
0:00:24.7]} 36... Qf6 {[%clk 0:00:14.8]} 37. Nxf7 {[%clk 0:00:16]} 37... Nc3
{[%clk 0:00:15.4]} 38. Rxc3 {[%clk 0:00:10.3]} 38... Qxc3 {[%clk 0:00:15.4]} 39.
Nxh6+ {[%clk 0:00:09.6]} 39... Kh7 {[%clk 0:00:16.4]} 40. Ng4 {[%clk 0:00:11]}
40... Qd4 {[%clk 0:00:16.4]} 41. Qxd4 {[%clk 0:00:11.7]} 41... Bxd4 {[%clk
0:00:18.1]} 42. Bg3 {[%clk 0:00:13]} 42... Bc5 {[%clk 0:00:19.4]} 43. Rc1 {[%clk
0:00:13.3]} 43... Ra8 {[%clk 0:00:21]} 44. Rc4 {[%clk 0:00:13.5]} 44... Kg7
{[%clk 0:00:22.5]} 45. Bf4 {[%clk 0:00:13.8]} 45... Kf7 {[%clk 0:00:23.9]} 46.
Be3 {[%clk 0:00:15.3]} 46... Bxe3 {[%clk 0:00:23.6]} 47. Nxe3 {[%clk 0:00:17.2]}
47... Ke6 {[%clk 0:00:24.9]} 48. Rc6+ {[%clk 0:00:18.4]} 48... Ke5 {[%clk
0:00:26.4]} 49. Rxb6 {[%clk 0:00:19.7]} 49... Rxa4 {[%clk 0:00:27.9]} 50. Rxg6
{[%clk 0:00:20.8]} 50... Kf4 {[%clk 0:00:29]} 51. Rg4+ {[%clk 0:00:21.5]} 51...
Ke5 {[%clk 0:00:30.4]} 52. Rxa4 {[%clk 0:00:23.4]} 1-0

[Event "*** MasterClass Titled Tuesday Blitz"]
[Site "Chess.com"]
[Date "2017.12.05"]
[Round "8"]
[White "luisgui16"]
[Black "AndreyOstrovskiy"]
[Result "0-1"]
[WhiteElo "2317"]
[BlackElo "2517"]
[TimeControl "180+2"]
[EndTime "15:59:18 PST"]
[Termination "AndreyOstrovskiy won by resignation"]

1. d4 {[%clk 0:02:56.8]} 1... Nf6 {[%clk 0:03:00.4]} 2. c4 {[%clk 0:02:57.5]}
2... e6 {[%clk 0:03:01.3]} 3. Nf3 {[%clk 0:02:58.5]} 3... b6 {[%clk 0:03:01.9]}
4. g3 {[%clk 0:02:58.3]} 4... c6 {[%clk 0:03:01.3]} 5. Bg2 {[%clk 0:02:52.2]}
5... Be7 {[%clk 0:03:01.6]} 6. O-O {[%clk 0:02:41.8]} 6... O-O {[%clk 0:03:02]}
7. Qc2 {[%clk 0:02:38]} 7... d5 {[%clk 0:03:02.1]} 8. Rd1 {[%clk 0:02:36]} 8...
Nbd7 {[%clk 0:02:59.9]} 9. Nc3 {[%clk 0:02:33.3]} 9... Ba6 {[%clk 0:02:58.2]}
10. cxd5 {[%clk 0:02:21.3]} 10... cxd5 {[%clk 0:02:56.3]} 11. Qa4 {[%clk
0:02:21.5]} 11... Qc8 {[%clk 0:02:03.5]} 12. Bf4 {[%clk 0:02:07.7]} 12... b5
{[%clk 0:02:04.2]} 13. Nxb5 {[%clk 0:02:02.1]} 13... Qc6 {[%clk 0:02:04.6]} 14.
Nc3 {[%clk 0:01:51.4]} 14... Qxa4 {[%clk 0:02:05.1]} 15. Nxa4 {[%clk 0:01:52.4]}
15... Bxe2 {[%clk 0:02:06.9]} 16. Rdc1 {[%clk 0:01:47.2]} 16... Rfc8 {[%clk
0:02:01.8]} 17. Nd2 {[%clk 0:01:38.1]} 17... Ne8 {[%clk 0:01:42.9]} 18. Nb3
{[%clk 0:01:26.6]} 18... g5 {[%clk 0:01:27.8]} 19. Be3 {[%clk 0:01:18.2]} 19...
Nb6 {[%clk 0:01:23.8]} 20. Nbc5 {[%clk 0:00:40.9]} 20... Nd6 {[%clk 0:01:05]}
21. b3 {[%clk 0:00:29.3]} 21... Nb5 {[%clk 0:00:52.1]} 22. Rc2 {[%clk
0:00:14.6]} 22... Bd3 {[%clk 0:00:47.7]} 23. Rd2 {[%clk 0:00:15.6]} 23... Bg6
{[%clk 0:00:45.6]} 24. Rc1 {[%clk 0:00:16.7]} 24... Nxa4 {[%clk 0:00:41]} 25.
bxa4 {[%clk 0:00:17]} 25... Nd6 {[%clk 0:00:32.9]} 26. Bf1 {[%clk 0:00:16.1]}
26... Ne4 {[%clk 0:00:33.3]} 27. Rb2 {[%clk 0:00:13.7]} 27... Rc7 {[%clk
0:00:19.8]} 28. Ba6 {[%clk 0:00:12]} 28... Nxc5 {[%clk 0:00:17.1]} 29. dxc5
{[%clk 0:00:13.9]} 29... e5 {[%clk 0:00:18.1]} 30. Rb5 {[%clk 0:00:13.5]} 30...
d4 {[%clk 0:00:19.2]} 31. Bd2 {[%clk 0:00:14.8]} 31... Bd3 {[%clk 0:00:20]} 32.
Ba5 {[%clk 0:00:05.7]} 32... Bxb5 {[%clk 0:00:21]} 33. axb5 {[%clk 0:00:07.4]}
33... Rxc5 {[%clk 0:00:21.7]} 34. Rxc5 {[%clk 0:00:08.2]} 34... Bxc5 {[%clk
0:00:23.6]} 35. Bb7 {[%clk 0:00:07.5]} 35... Rb8 {[%clk 0:00:24.8]} 36. Bc6
{[%clk 0:00:08.6]} 36... Bb6 {[%clk 0:00:26.2]} 37. Bb4 {[%clk 0:00:08.7]} 37...
d3 {[%clk 0:00:27.6]} 38. Kf1 {[%clk 0:00:08.7]} 38... Rd8 {[%clk 0:00:27.7]}
39. Bd2 {[%clk 0:00:07.6]} 39... h6 {[%clk 0:00:28.3]} 40. a4 {[%clk 0:00:08.5]}
40... Kg7 {[%clk 0:00:29.4]} 41. a5 {[%clk 0:00:09.8]} 41... Bxa5 {[%clk
0:00:30.8]} 42. Bxa5 {[%clk 0:00:09.1]} 42... d2 {[%clk 0:00:32.7]} 43. Bf3
{[%clk 0:00:03.4]} 43... d1=Q+ {[%clk 0:00:32.6]} 44. Bxd1 {[%clk 0:00:04.8]}
44... Rxd1+ {[%clk 0:00:34]} 45. Ke2 {[%clk 0:00:05]} 45... Rd5 {[%clk
0:00:34.4]} 46. Bc3 {[%clk 0:00:04.6]} 46... Rxb5 {[%clk 0:00:35.2]} 47. Kd3
{[%clk 0:00:06]} 47... f6 {[%clk 0:00:36.6]} 0-1

[Event "*** MasterClass Titled Tuesday Blitz"]
[Site "Chess.com"]
[Date "2017.12.05"]
[Round "8"]
[White "RaphaeI"]
[Black "AbdAlAgathos"]
[Result "1-0"]
[WhiteElo "2516"]
[BlackElo "2311"]
[TimeControl "180+2"]
[EndTime "15:59:27 PST"]
[Termination "RaphaeI won by resignation"]

1. Nf3 {[%clk 0:03:01.9]} 1... Nf6 {[%clk 0:03:00.3]} 2. c4 {[%clk 0:03:00.6]}
2... g6 {[%clk 0:03:00.8]} 3. g3 {[%clk 0:03:01.2]} 3... Bg7 {[%clk 0:03:02]} 4.
Bg2 {[%clk 0:03:02.8]} 4... O-O {[%clk 0:03:00.5]} 5. d4 {[%clk 0:03:01.7]} 5...
d6 {[%clk 0:02:59.7]} 6. Nc3 {[%clk 0:03:02.2]} 6... Nc6 {[%clk 0:03:00.4]} 7.
O-O {[%clk 0:03:03.3]} 7... a6 {[%clk 0:03:01.4]} 8. b3 {[%clk 0:03:04.8]} 8...
Rb8 {[%clk 0:03:01.8]} 9. Nd5 {[%clk 0:03:06.4]} 9... b5 {[%clk 0:02:45.7]} 10.
Nxf6+ {[%clk 0:03:05.5]} 10... Bxf6 {[%clk 0:02:47.6]} 11. Bh6 {[%clk 0:03:06]}
11... Re8 {[%clk 0:02:42.4]} 12. Rc1 {[%clk 0:03:06.9]} 12... Bd7 {[%clk
0:02:31.7]} 13. c5 {[%clk 0:03:00.1]} 13... d5 {[%clk 0:02:09.5]} 14. Bf4 {[%clk
0:02:47]} 14... Nxd4 {[%clk 0:01:53.2]} 15. Nxd4 {[%clk 0:01:54]} 15... e5
{[%clk 0:01:54.1]} 16. Bxe5 {[%clk 0:01:54.2]} 16... Bxe5 {[%clk 0:01:34.3]} 17.
c6 {[%clk 0:01:56.1]} 17... Bg4 {[%clk 0:01:22]} 18. h3 {[%clk 0:01:57.4]} 18...
Bc8 {[%clk 0:01:22.2]} 19. Rc5 {[%clk 0:01:51.8]} 19... Be6 {[%clk 0:01:16.5]}
20. e3 {[%clk 0:01:35.8]} 20... Bd6 {[%clk 0:01:06.8]} 21. Rc2 {[%clk
0:01:32.8]} 21... Bf8 {[%clk 0:00:57.8]} 22. h4 {[%clk 0:01:28.4]} 22... Qf6
{[%clk 0:00:44.7]} 23. h5 {[%clk 0:01:24.9]} 23... Rbd8 {[%clk 0:00:44.8]} 24.
hxg6 {[%clk 0:01:20.7]} 24... hxg6 {[%clk 0:00:44.7]} 25. Qd3 {[%clk 0:01:07.6]}
25... Bc8 {[%clk 0:00:43.6]} 26. a4 {[%clk 0:00:57.9]} 26... bxa4 {[%clk
0:00:42.7]} 27. bxa4 {[%clk 0:00:59.8]} 27... Kg7 {[%clk 0:00:37.6]} 28. Rb1
{[%clk 0:00:56.2]} 28... Re5 {[%clk 0:00:20.3]} 29. Rb8 {[%clk 0:00:48.8]} 29...
Rh5 {[%clk 0:00:21.1]} 30. Qc3 {[%clk 0:00:46.9]} 30... Be7 {[%clk 0:00:18.8]}
31. Ne2 {[%clk 0:00:40.9]} 31... Qxc3 {[%clk 0:00:17.7]} 32. Rxc3 {[%clk
0:00:41.3]} 32... Bf6 {[%clk 0:00:17.2]} 33. Nd4 {[%clk 0:00:40.4]} 33... Rdh8
{[%clk 0:00:16.4]} 34. Bf3 {[%clk 0:00:32.5]} 34... Re5 {[%clk 0:00:14.6]} 35.
Rc5 {[%clk 0:00:26.2]} 35... Rd8 {[%clk 0:00:14]} 36. a5 {[%clk 0:00:19.9]}
36... Be7 {[%clk 0:00:12]} 37. Rxd5 {[%clk 0:00:20.6]} 37... Rexd5 {[%clk
0:00:13]} 38. Bxd5 {[%clk 0:00:21.9]} 38... Rxd5 {[%clk 0:00:14.9]} 39. Rxc8
{[%clk 0:00:22.7]} 39... Rxa5 {[%clk 0:00:16.4]} 40. Rxc7 {[%clk 0:00:23.9]}
40... Bd6 {[%clk 0:00:16.6]} 41. Rd7 {[%clk 0:00:24.8]} 41... Be5 {[%clk
0:00:16.4]} 42. c7 {[%clk 0:00:20.3]} 42... Ra1+ {[%clk 0:00:17.5]} 43. Kg2
{[%clk 0:00:20.9]} 43... Rc1 {[%clk 0:00:19.1]} 44. f4 {[%clk 0:00:12.6]} 44...
Bxd4 {[%clk 0:00:12.2]} 45. exd4 {[%clk 0:00:13.7]} 45... a5 {[%clk 0:00:14.1]}
46. d5 {[%clk 0:00:12.6]} 46... a4 {[%clk 0:00:16]} 47. d6 {[%clk 0:00:14]}
47... a3 {[%clk 0:00:17.4]} 48. Rd8 {[%clk 0:00:15.4]} 48... a2 {[%clk
0:00:18.4]} 49. Ra8 {[%clk 0:00:16.5]} 1-0

[Event "*** MasterClass Titled Tuesday Blitz"]
[Site "Chess.com"]
[Date "2017.12.05"]
[Round "8"]
[White "Koksik_13"]
[Black "Jumbo"]
[Result "1-0"]
[WhiteElo "2347"]
[BlackElo "2444"]
[TimeControl "180+2"]
[EndTime "15:59:27 PST"]
[Termination "Koksik_13 won on time"]

1. g4 {[%clk 0:02:54.7]} 1... d5 {[%clk 0:03:00.1]} 2. Bg2 {[%clk 0:02:55.5]}
2... c6 {[%clk 0:03:01.7]} 3. c4 {[%clk 0:02:56.4]} 3... dxc4 {[%clk 0:03:01.7]}
4. g5 {[%clk 0:02:56.1]} 4... Be6 {[%clk 0:02:56.3]} 5. h4 {[%clk 0:02:55.5]}
5... Nd7 {[%clk 0:02:51.4]} 6. b3 {[%clk 0:02:52.5]} 6... cxb3 {[%clk
0:02:49.3]} 7. axb3 {[%clk 0:02:53.6]} 7... Nc5 {[%clk 0:02:34.8]} 8. Bb2 {[%clk
0:02:52.5]} 8... Bxb3 {[%clk 0:02:29.9]} 9. Qc1 {[%clk 0:02:52.9]} 9... Bd5
{[%clk 0:02:31.1]} 10. Nf3 {[%clk 0:02:44.7]} 10... Nb3 {[%clk 0:02:28.8]} 11.
Qc2 {[%clk 0:02:45.1]} 11... Nxa1 {[%clk 0:02:29.3]} 12. Bxa1 {[%clk 0:02:46.7]}
12... Qa5 {[%clk 0:02:26.2]} 13. Bb2 {[%clk 0:02:41.4]} 13... Qb4 {[%clk
0:01:57.7]} 14. Nc3 {[%clk 0:02:37.6]} 14... Bb3 {[%clk 0:01:58.6]} 15. Qc1
{[%clk 0:02:35.7]} 15... e6 {[%clk 0:01:59.4]} 16. O-O {[%clk 0:02:28.5]} 16...
h6 {[%clk 0:01:47.9]} 17. g6 {[%clk 0:02:26.6]} 17... fxg6 {[%clk 0:01:48.8]}
18. Qb1 {[%clk 0:02:20.5]} 18... Ne7 {[%clk 0:01:48.5]} 19. Ne5 {[%clk 0:02:06]}
19... O-O-O {[%clk 0:01:31.3]} 20. Ne4 {[%clk 0:02:04.7]} 20... Rd5 {[%clk
0:01:24.1]} 21. Nf7 {[%clk 0:02:03.6]} 21... Nf5 {[%clk 0:01:17]} 22. Bc3 {[%clk
0:01:59.4]} 22... Qa4 {[%clk 0:01:17.7]} 23. Nxh8 {[%clk 0:01:40.4]} 23... Nxh4
{[%clk 0:01:18.7]} 24. Ng3 {[%clk 0:01:31.5]} 24... g5 {[%clk 0:01:03.4]} 25.
Bxd5 {[%clk 0:01:17.7]} 25... Bxd5 {[%clk 0:01:05.3]} 26. Ng6 {[%clk 0:01:16.2]}
26... Bd6 {[%clk 0:01:05.2]} 27. Be5 {[%clk 0:00:56]} 27... Nxg6 {[%clk
0:00:19.9]} 28. Bxd6 {[%clk 0:00:54.2]} 28... Nh4 {[%clk 0:00:20.4]} 29. Qh7
{[%clk 0:00:54.4]} 29... Qd4 {[%clk 0:00:04.2]} 30. Qh8+ {[%clk 0:00:43.5]}
30... Kd7 {[%clk 0:00:05.2]} 31. Qb8 {[%clk 0:00:44.3]} 31... Qb6 {[%clk
0:00:04]} 32. Qf8 {[%clk 0:00:44.1]} 32... Qd8 {[%clk 0:00:03.8]} 33. Qxd8+
{[%clk 0:00:30.4]} 33... Kxd8 {[%clk 0:00:04.6]} 34. Be5 {[%clk 0:00:28.4]}
34... g6 {[%clk 0:00:04.1]} 35. Bg7 {[%clk 0:00:28]} 35... Nf5 {[%clk
0:00:05.2]} 36. Nxf5 {[%clk 0:00:28.3]} 36... gxf5 {[%clk 0:00:06.8]} 37. Bxh6
{[%clk 0:00:29.3]} 37... g4 {[%clk 0:00:08.3]} 38. d4 {[%clk 0:00:24.3]} 38...
a5 {[%clk 0:00:07.4]} 39. Bf8 {[%clk 0:00:22.7]} 39... Kc7 {[%clk 0:00:06.5]}
40. Ra1 {[%clk 0:00:22.8]} 40... b6 {[%clk 0:00:07.2]} 41. Kh2 {[%clk
0:00:23.9]} 41... Bc4 {[%clk 0:00:06.2]} 42. e3 {[%clk 0:00:22.7]} 42... Bd5
{[%clk 0:00:06.9]} 43. Kg3 {[%clk 0:00:24]} 43... Kb7 {[%clk 0:00:08]} 44. Be7
{[%clk 0:00:23.9]} 44... Bb3 {[%clk 0:00:06.2]} 45. Kf4 {[%clk 0:00:20.8]} 45...
Ka6 {[%clk 0:00:07.2]} 46. Bd8 {[%clk 0:00:20.4]} 46... a4 {[%clk 0:00:07.3]}
47. Ke5 {[%clk 0:00:20.9]} 47... b5 {[%clk 0:00:04.2]} 48. Kd6 {[%clk
0:00:22.1]} 48... b4 {[%clk 0:00:02.3]} 49. Kc5 {[%clk 0:00:23.1]} 1-0

[Event "*** MasterClass Titled Tuesday Blitz"]
[Site "Chess.com"]
[Date "2017.12.05"]
[Round "8"]
[White "penguingm1"]
[Black "Korchmar_Vasiliy"]
[Result "1-0"]
[WhiteElo "2629"]
[BlackElo "2544"]
[TimeControl "180+2"]
[EndTime "15:59:45 PST"]
[Termination "penguingm1 won on time"]

1. d4 {[%clk 0:03:01.9]} 1... Nf6 {[%clk 0:03:00.6]} 2. c4 {[%clk 0:03:02.9]}
2... e6 {[%clk 0:03:01.7]} 3. Nc3 {[%clk 0:03:04.1]} 3... Bb4 {[%clk 0:03:02.3]}
4. Qc2 {[%clk 0:03:05.6]} 4... b6 {[%clk 0:03:02.8]} 5. e4 {[%clk 0:03:06.6]}
5... c5 {[%clk 0:03:03.8]} 6. d5 {[%clk 0:03:08.1]} 6... Qe7 {[%clk 0:02:54.6]}
7. Ne2 {[%clk 0:03:08.3]} 7... exd5 {[%clk 0:02:53.4]} 8. exd5 {[%clk
0:03:10.2]} 8... O-O {[%clk 0:02:53.2]} 9. Bg5 {[%clk 0:03:11]} 9... d6 {[%clk
0:02:52.2]} 10. O-O-O {[%clk 0:03:11]} 10... Nbd7 {[%clk 0:02:51.6]} 11. Ng3
{[%clk 0:03:11.4]} 11... Qe5 {[%clk 0:02:30.4]} 12. Bd2 {[%clk 0:02:54.6]} 12...
b5 {[%clk 0:02:16.3]} 13. f4 {[%clk 0:02:41.3]} 13... Qe7 {[%clk 0:02:12.5]} 14.
Nf5 {[%clk 0:02:40.7]} 14... Qd8 {[%clk 0:02:11]} 15. Nxd6 {[%clk 0:02:41.6]}
15... bxc4 {[%clk 0:02:05.1]} 16. Nxc4 {[%clk 0:02:37.6]} 16... Nb6 {[%clk
0:01:52.8]} 17. Nxb6 {[%clk 0:02:15.5]} 17... Qxb6 {[%clk 0:01:47.8]} 18. a3
{[%clk 0:02:12.8]} 18... Ba5 {[%clk 0:01:45.5]} 19. Bc4 {[%clk 0:01:36.6]} 19...
Bg4 {[%clk 0:01:36.9]} 20. Rde1 {[%clk 0:01:36]} 20... Rad8 {[%clk 0:01:31.8]}
21. Re5 {[%clk 0:01:35.4]} 21... Bc8 {[%clk 0:01:26.7]} 22. Rhe1 {[%clk
0:01:32.6]} 22... Bb7 {[%clk 0:00:57.4]} 23. Rg5 {[%clk 0:01:17.6]} 23... h6
{[%clk 0:00:50.2]} 24. Rg3 {[%clk 0:00:55.2]} 24... Nxd5 {[%clk 0:00:51.3]} 25.
Bd3 {[%clk 0:00:36.4]} 25... Nxc3 {[%clk 0:00:47.4]} 26. Bxc3 {[%clk 0:00:37.5]}
26... Bxc3 {[%clk 0:00:48.9]} 27. Qxc3 {[%clk 0:00:39.4]} 27... Rd4 {[%clk
0:00:50.4]} 28. Bc2 {[%clk 0:00:37.3]} 28... Qd6 {[%clk 0:00:36.7]} 29. Kb1
{[%clk 0:00:34.5]} 29... Bd5 {[%clk 0:00:19.4]} 30. Re5 {[%clk 0:00:28.7]} 30...
Be6 {[%clk 0:00:08.8]} 31. Rxc5 {[%clk 0:00:18.5]} 31... Rd8 {[%clk 0:00:09.1]}
32. f5 {[%clk 0:00:14.5]} 32... Bd5 {[%clk 0:00:10.4]} 33. Ka1 {[%clk
0:00:10.9]} 33... Bb7 {[%clk 0:00:10.8]} 34. Re3 {[%clk 0:00:11]} 34... Qf4
{[%clk 0:00:07.7]} 35. Re1 {[%clk 0:00:10.5]} 35... Bxg2 {[%clk 0:00:06.8]} 36.
Rc7 {[%clk 0:00:08.2]} 36... Qf2 {[%clk 0:00:06.7]} 37. Rc1 {[%clk 0:00:08.9]}
37... Bd5 {[%clk 0:00:05.4]} 38. Bb3 {[%clk 0:00:09.7]} 38... Bxb3 {[%clk
0:00:06.4]} 39. Qxb3 {[%clk 0:00:11.6]} 39... Qxf5 {[%clk 0:00:06.9]} 40. Rxa7
{[%clk 0:00:12.7]} 40... Rd2 {[%clk 0:00:06.5]} 41. Rb7 {[%clk 0:00:10.7]} 41...
Rf2 {[%clk 0:00:07.2]} 42. Ka2 {[%clk 0:00:11.9]} 42... Rdd2 {[%clk 0:00:07.6]}
43. Qc4 {[%clk 0:00:09.1]} 43... Qe5 {[%clk 0:00:06.9]} 44. Rc3 {[%clk
0:00:08.2]} 44... Rxh2 {[%clk 0:00:06.7]} 45. Qxf7+ {[%clk 0:00:06.2]} 45... Kh7
{[%clk 0:00:06.8]} 46. Qc4 {[%clk 0:00:06.4]} 46... h5 {[%clk 0:00:07.3]} 47. a4
{[%clk 0:00:07.8]} 47... Rhg2 {[%clk 0:00:06.2]} 48. Rb5 {[%clk 0:00:09.3]}
48... Qf6 {[%clk 0:00:05.9]} 49. Rxh5+ {[%clk 0:00:09.9]} 49... Kg6 {[%clk
0:00:06.5]} 50. Rb5 {[%clk 0:00:11.3]} 50... Rd4 {[%clk 0:00:06.2]} 51. Qb3
{[%clk 0:00:11.6]} 51... Qa6 {[%clk 0:00:05.8]} 52. Rb6+ {[%clk 0:00:12.9]} 1-0